bitfinex/quotes_SOLUSD_20220128
["timestamp","ask_amount","ask_price","bid_price","bid_amount"]
[1643362344880,15.91,90.3,90.15,6.0]
[1643362345081,46.897,90.299,90.151,6.0]
[1643362345281,15.91,90.29,90.151,19.67576551]
[1643362345510,15.91,90.29,90.16,6.0]
[1643362345511,47.86969805,90.289,90.16,6.0]
[1643362345685,6.0,90.28,90.161,6.0]
[1643362345883,6.0,90.279,90.162,6.0]
[1643362346082,29.7783,90.279,90.17,6.0]
[1643362346483,39.25217381,90.269,90.17,6.0]
[1643362346882,6.0,90.259,90.17,6.0]
[1643362347081,6.0,90.259,90.171,0.25]
[1643362347282,0.25,90.258,90.171,0.25]
[1643362347683,0.25,90.258,90.151,11.34221004]
[1643362347883,0.25,90.258,90.152,0.25]
[1643362348084,6.25,90.258,90.152,0.25]
[1643362348684,6.0,90.257,90.152,0.25]
[1643362348884,0.25,90.256,90.152,0.25]
[1643362349086,42.96545317,90.247,90.152,0.25]
[1643362349289,0.25,90.246,90.152,0.25]
[1643362349484,6.0,90.237,90.152,0.25]
[1643362349686,6.0,90.237,90.151,0.25]
[1643362349887,0.25,90.236,90.151,0.25]
[1643362350086,6.0,90.237,90.151,0.25]
[1643362351287,6.0,90.237,90.152,2.08355547]
[1643362351488,6.0,90.237,90.16,6.0]
[1643362351789,6.0,90.237,90.17,15.91]
[1643362352187,6.0,90.237,90.18,6.0]
[1643362352388,6.0,90.237,90.181,0.25]
[1643362353189,6.0,90.237,90.18,6.0]
[1643362353392,6.0,90.237,90.161,2.08355547]
[1643362353589,6.0,90.236,90.171,6.0]
[1643362353792,6.0,90.236,90.17,15.91]
[1643362354691,0.25,90.235,90.171,0.25]
[1643362355091,6.0,90.236,90.171,0.25]
[1643362355693,6.0,90.237,90.171,0.25]
[1643362357496,42.96545317,90.247,90.18,6.0]
[1643362357899,42.96545317,90.247,90.181,2.33154604]
[1643362359901,42.96545317,90.247,90.182,2.08154604]
[1643362360102,42.96545317,90.247,90.192,6.0]
[1643362360303,42.96545317,90.247,90.193,0.25]
[1643362360522,24.4625,90.326,90.2,6.0]
[1643362360720,47.6531,90.329,90.21,15.91]
[1643362361125,47.6531,90.329,90.22,6.0]
[1643362361325,79.41548557,90.357,90.23,15.91]
[1643362361522,42.82857306,90.356,90.231,24.0021]
[1643362361721,111.5,90.346,90.231,30.0021]
[1643362361921,111.5,90.346,90.232,29.5119]
[1643362361922,117.5,90.346,90.232,29.5119]
[1643362362122,117.5,90.346,90.242,6.0]
[1643362362123,0.25,90.345,90.242,6.0]
[1643362362323,6.0,90.346,90.25,15.91]
[1643362362523,6.0,90.346,90.26,6.0]
[1643362362922,6.0,90.346,90.261,0.25]
[1643362363124,42.82857306,90.356,90.261,6.25]
[1643362363323,42.82857306,90.356,90.262,48.8237]
[1643362363525,42.82857306,90.356,90.272,6.0]
[1643362363727,42.82857306,90.356,90.273,111.5]
[1643362363924,42.82857306,90.356,90.273,114.1353934]
[1643362364124,42.82857306,90.356,90.283,6.0]
[1643362364325,3.0394906,90.403,90.29,15.91]
[1643362364527,3.0394906,90.426,90.3,6.0]
[1643362364725,3.0394906,90.426,90.301,47.0167]
[1643362364927,2.95669142,90.414,90.301,47.2667]
[1643362365127,3.20669142,90.414,90.301,47.2667]
[1643362365327,49.01866082,90.413,90.301,47.2667]
[1643362365528,6.0,90.403,90.3,15.91]
[1643362365728,23.2501,90.402,90.273,2.08154604]
[1643362365929,43.98879815,90.399,90.26,15.91]
[1643362366128,6.0,90.389,90.26,15.91]
[1643362366431,15.91,90.38,90.26,15.91]
[1643362366629,48.56947247,90.369,90.26,15.91]
[1643362366827,46.2341,90.368,90.26,15.91]
[1643362367028,6.0,90.358,90.26,15.91]
[1643362367228,6.0,90.358,90.27,6.0]
[1643362367429,0.25,90.357,90.28,15.91]
[1643362367831,6.0,90.358,90.281,0.25]
[1643362368431,6.0,90.358,90.28,15.91]
[1643362368631,39.0418596,90.347,90.28,15.91]
[1643362368834,6.0,90.337,90.28,15.91]
[1643362369036,6.0,90.337,90.271,23.5738]
[1643362369233,0.25,90.336,90.271,23.5738]
[1643362369432,6.25,90.336,90.271,23.5738]
[1643362369634,0.25,90.336,90.271,23.5738]
[1643362369834,45.0631959,90.325,90.272,0.25]
[1643362370235,0.25,90.324,90.272,0.25]
[1643362371838,45.0631959,90.325,90.272,0.25]
[1643362373039,6.0,90.315,90.272,0.25]
[1643362373239,45.0631959,90.325,90.272,0.25]
[1643362373440,45.0631959,90.325,90.261,0.25]
[1643362373841,0.25,90.324,90.261,0.25]
[1643362374340,6.0,90.315,90.261,0.25]
[1643362374540,6.0,90.315,90.27,6.0]
[1643362374740,15.91,90.4,90.271,0.25]
[1643362374944,22.8131,90.398,90.272,6.0]
[1643362375140,6.0,90.379,90.282,111.5]
[1643362375440,6.0,90.379,90.29,15.91]
[1643362375641,43.86487382,90.378,90.3,6.0]
[1643362375941,43.86487382,90.378,90.301,22.9435]
[1643362376143,6.0,90.388,90.311,6.0]
[1643362376341,6.0,90.388,90.32,15.91]
[1643362376542,6.0,90.419,90.33,6.0]
[1643362376942,6.0,90.419,90.331,6.25]
[1643362377143,42.44259489,90.418,90.341,6.0]
[1643362377342,42.44259489,90.418,90.342,0.25]
[1643362377543,6.0,90.408,90.342,0.25]
[1643362377742,6.0,90.408,90.322,47.5812]
[1643362377743,0.25,90.407,90.322,47.5812]
[1643362378145,6.25,90.407,90.323,0.25]
[1643362378946,6.0,90.406,90.323,0.25]
[1643362379145,6.0,90.397,90.323,0.25]
[1643362379351,38.54393608,90.396,90.323,0.25]
[1643362379545,6.0,90.386,90.323,0.25]
[1643362380346,6.0,90.386,90.324,2.08154604]
[1643362380548,6.0,90.386,90.334,6.0]
[1643362380948,6.0,90.386,90.335,0.25]
[1643362381147,6.0,90.386,90.33,15.91]
[1643362382147,6.0,90.386,90.231,0.25]
[1643362382148,6.0,90.386,90.294,11.34221004]
[1643362382349,24.6387,90.385,90.295,23.2192]
[1643362382549,6.0,90.375,90.305,6.0]
[1643362382749,49.40380134,90.373,90.305,6.0]
[1643362382949,49.40380134,90.373,90.306,0.25]
[1643362383150,6.0,90.363,90.305,6.0]
[1643362383349,6.0,90.363,90.306,0.25]
[1643362383548,49.40380134,90.373,90.306,0.25]
[1643362384151,0.25,90.372,90.306,0.25]
[1643362386353,0.25,90.372,90.301,0.25]
[1643362387156,0.25,90.372,90.296,0.25]
[1643362388056,6.0,90.363,90.296,0.25]
[1643362388253,0.25,90.362,90.296,0.25]
[1643362389857,0.25,90.362,90.295,22.9692]
[1643362390057,0.25,90.362,90.285,23.4028]
[1643362390659,111.75,90.362,90.275,24.6614]
[1643362390859,111.75,90.362,90.266,24.5102]
[1643362391058,6.0,90.352,90.266,24.5102]
[1643362391258,39.45116323,90.351,90.266,24.5102]
[1643362391459,38.95116323,90.351,90.266,24.5102]
[1643362391659,111.5,90.34,90.266,24.5102]
[1643362391857,0.25,90.339,90.266,24.5102]
[1643362392057,0.25,90.339,90.254,23.058]
[1643362392458,0.25,90.339,90.255,2.08154604]
[1643362393259,6.0,90.34,90.255,2.08154604]
[1643362394059,6.0,90.34,90.256,0.25]
[1643362394560,6.0,90.34,90.256,2.33154604]
[1643362394762,6.0,90.34,90.256,2.08154604]
[1643362394960,6.0,90.34,90.257,0.25]
[1643362395962,0.25,90.339,90.257,0.25]
[1643362396662,6.25,90.339,90.257,0.25]
[1643362397667,6.25,90.339,90.255,0.25]
[1643362397867,16.73,90.339,90.255,0.25]
[1643362398168,16.73,90.339,90.254,23.058]
[1643362398367,16.73,90.339,90.25,15.91]
[1643362398567,16.73,90.339,90.221,2.07726955]
[1643362398769,44.74207873,90.337,90.221,25.93186955]
[1643362399267,6.0,90.327,90.221,25.93186955]
[1643362399668,0.25,90.326,90.242,0.25]
[1643362399870,6.25,90.326,90.242,0.25]
[1643362401574,6.25,90.326,90.243,2.07726955]
[1643362401791,6.25,90.326,90.244,0.25]
[1643362403092,40.94864229,90.316,90.243,0.25]
[1643362403292,0.25,90.315,90.243,0.25]
[1643362403496,6.0,90.306,90.243,0.25]
[1643362403893,0.25,90.305,90.243,0.25]
[1643362405197,0.25,90.305,90.231,0.25]
[1643362405397,0.25,90.305,90.222,11.34221004]
[1643362405605,6.25,90.305,90.222,11.34221004]
[1643362405797,6.25,90.305,90.204,11.34221004]
[1643362405997,6.0,90.303,90.217,6.0]
[1643362406197,6.0,90.303,90.204,11.34221004]
[1643362406198,39.19089895,90.302,90.204,11.34221004]
[1643362406400,6.0,90.295,90.217,6.0]
[1643362406599,6.0,90.292,90.217,6.0]
[1643362406796,6.0,90.292,90.218,0.25]
[1643362406997,6.0,90.291,90.218,0.25]
[1643362407197,6.0,90.291,90.217,6.0]
[1643362408401,6.0,90.291,90.214,6.0]
[1643362408602,6.0,90.291,90.205,0.25]
[1643362408801,6.0,90.291,90.214,6.0]
[1643362409001,6.0,90.29,90.214,6.0]
[1643362409202,6.0,90.29,90.215,0.25]
[1643362409401,6.0,90.29,90.205,0.25]
[1643362409602,6.0,90.291,90.205,0.25]
[1643362410204,111.5,90.29,90.205,0.25]
[1643362410404,117.5,90.29,90.205,0.25]
[1643362410603,6.0,90.28,90.205,0.25]
[1643362410802,44.47533782,90.279,90.205,0.25]
[1643362411002,6.0,90.269,90.205,0.25]
[1643362412806,44.47533782,90.279,90.201,0.25]
[1643362413303,44.22533782,90.279,90.201,15.85463536]
[1643362413506,44.22533782,90.279,90.202,30.8417829]
[1643362413704,24.6885,90.304,90.211,6.0]
[1643362413911,0.25,90.303,90.212,55.6947]
[1643362414105,0.25,90.303,90.222,6.0]
[1643362414306,0.25,90.303,90.223,0.25]
[1643362414705,41.31744825,90.303,90.223,0.25]
[1643362415508,6.0,90.293,90.213,0.25]
[1643362415705,6.0,90.293,90.222,6.0]
[1643362415907,6.0,90.293,90.223,0.25]
[1643362416107,6.0,90.292,90.223,0.25]
[1643362416808,6.0,90.292,90.213,0.25]
[1643362417407,111.5,90.291,90.183,111.5]
[1643362417606,40.02824333,90.289,90.19,15.91]
[1643362417809,111.75,90.288,90.2,6.0]
[1643362418209,111.75,90.288,90.201,0.25]
[1643362418409,111.75,90.288,90.201,37.09393044]
[1643362418608,111.75,90.288,90.201,30.84393044]
[1643362418807,111.75,90.288,90.202,30.84393044]
[1643362419008,6.0,90.278,90.202,30.84393044]
[1643362419207,6.0,90.278,90.191,30.84393044]
[1643362419409,23.108,90.277,90.191,30.84393044]
[1643362419607,6.0,90.267,90.191,30.84393044]
[1643362419808,46.10023564,90.266,90.192,0.25]
[1643362420009,6.0,90.256,90.192,0.25]
[1643362420209,6.0,90.256,90.171,111.9]
[1643362420210,6.0,90.256,90.173,0.25]
[1643362420411,0.25,90.255,90.172,23.3745]
[1643362420811,0.25,90.255,90.173,30.85328303]
[1643362421211,0.25,90.255,90.174,0.25]
[1643362421410,0.25,90.264,90.174,0.25]
[1643362421611,0.25,90.264,90.175,30.85328303]
[1643362421810,0.25,90.264,90.176,0.25]
[1643362422208,0.25,90.264,90.177,15.60463536]
[1643362422410,0.25,90.264,90.178,111.75]
[1643362422610,0.25,90.264,90.178,0.25]
[1643362422912,0.25,90.264,90.179,46.45791839]
[1643362423309,0.25,90.265,90.189,6.0]
[1643362423711,0.25,90.265,90.19,0.25]
[1643362424012,0.25,90.265,90.19,6.25]
[1643362424613,6.0,90.256,90.19,6.25]
[1643362424812,0.25,90.255,90.19,6.25]
[1643362425012,6.0,90.255,90.19,6.25]
[1643362425213,22.7342,90.287,90.19,6.25]
[1643362425416,22.7342,90.287,90.191,24.4498]
[1643362425613,22.7342,90.287,90.191,46.97961951]
[1643362425813,22.6159,90.318,90.2,6.0]
[1643362426013,6.0,90.308,90.201,30.5048]
[1643362426215,45.49070581,90.286,90.201,30.7548]
[1643362426413,45.49070581,90.286,90.202,22.9242]
[1643362426824,45.49070581,90.286,90.203,0.25]
[1643362427215,0.25,90.285,90.203,0.25]
[1643362428617,0.25,90.285,90.212,6.0]
[1643362428818,0.25,90.285,90.213,0.25]
[1643362429015,45.49070581,90.286,90.213,0.25]
[1643362430416,0.25,90.285,90.213,0.25]
[1643362430818,0.25,90.285,90.212,6.0]
[1643362431217,6.0,90.276,90.202,22.9242]
[1643362431417,0.25,90.275,90.202,22.9242]
[1643362432019,6.25,90.275,90.202,22.9242]
[1643362432217,6.25,90.275,90.203,0.25]
[1643362432417,6.0,90.274,90.203,0.25]
[1643362432618,6.0,90.265,90.203,0.25]
[1643362432820,48.419776,90.264,90.181,0.25]
[1643362433120,6.0,90.254,90.181,41.49911951]
[1643362433318,0.25,90.253,90.181,41.49911951]
[1643362433519,0.25,90.253,90.182,2.07726955]
[1643362433718,0.25,90.253,90.182,18.60708906]
[1643362433918,0.25,90.253,90.183,0.25]
[1643362434118,0.25,90.253,90.183,2.32726955]
[1643362434519,0.25,90.262,90.184,2.07726955]
[1643362434919,111.75,90.262,90.169,2.96928918]
[1643362435118,117.5,90.252,90.16,15.91]
[1643362435322,111.5,90.248,90.16,15.91]
[1643362435545,6.0,90.238,90.16,15.91]
[1643362435722,111.5,90.237,90.16,15.91]
[1643362436119,38.58092885,90.226,90.16,15.91]
[1643362436319,38.58092885,90.226,90.161,0.25]
[1643362436520,23.9613,90.25,90.161,0.25]
[1643362436919,23.9613,90.25,90.162,2.07726955]
[1643362437121,23.9613,90.25,90.172,6.0]
[1643362437320,23.9613,90.25,90.173,0.25]
[1643362437519,40.9519767,90.249,90.173,8.32726955]
[1643362437919,40.9519767,90.249,90.174,25.59846955]
[1643362438322,40.9519767,90.249,90.175,0.25]
[1643362438520,40.9519767,90.249,90.184,6.0]
[1643362438921,40.9519767,90.249,90.185,0.25]
[1643362439120,40.9519767,90.249,90.185,6.25]
[1643362439322,0.25,90.248,90.184,6.0]
[1643362439523,6.0,90.239,90.185,0.25]
[1643362439724,40.9519767,90.249,90.185,0.25]
[1643362440932,0.25,90.248,90.185,0.25]
[1643362441724,0.25,90.248,90.175,0.25]
[1643362442525,0.25,90.248,90.184,6.0]
[1643362442725,0.25,90.248,90.175,0.25]
[1643362444355,0.25,90.248,90.167,1.51272659]
[1643362444559,6.0,90.239,90.167,1.51272659]
[1643362444757,6.0,90.239,90.134,48.7736]
[1643362444758,24.1711,90.238,90.152,1.51272659]
[1643362444956,27.37779142,90.238,90.15,1.51272659]
[1643362445256,35.61718587,90.227,90.149,1.51272659]
[1643362445558,6.0,90.217,90.15,1.51272659]
[1643362445955,6.0,90.217,90.143,1.51272659]
[1643362446157,6.0,90.217,90.146,1.51272659]
[1643362446555,6.0,90.217,90.145,1.51272659]
[1643362446755,0.25,90.216,90.134,48.7736]
[1643362446956,0.25,90.216,90.13,15.91]
[1643362447256,6.25,90.216,90.133,0.25]
[1643362447656,44.07086397,90.206,90.133,0.25]
[1643362447856,0.25,90.205,90.133,0.25]
[1643362448356,0.25,90.205,90.131,0.25]
[1643362448557,6.0,90.196,90.131,0.25]
[1643362448759,0.25,90.205,90.131,0.25]
[1643362449558,6.0,90.196,90.131,0.25]
[1643362449759,0.25,90.205,90.131,0.25]
[1643362449958,0.25,90.195,90.131,23.3819]
[1643362450956,44.07086397,90.206,90.131,23.3819]
[1643362450957,0.25,90.205,90.131,23.3819]
[1643362453462,111.75,90.205,90.131,23.3819]
[1643362453866,111.75,90.205,90.131,23.1319]
[1643362454064,0.25,90.205,90.131,23.1319]
[1643362454566,6.0,90.196,90.131,23.1319]
[1643362454865,0.25,90.195,90.131,23.1319]
[1643362455065,6.25,90.195,90.131,23.1319]
[1643362455264,6.25,90.195,90.132,0.25]
[1643362459568,6.0,90.194,90.132,0.25]
[1643362459767,38.35623897,90.184,90.132,0.25]
[1643362460170,6.0,90.194,90.132,0.25]
[1643362460371,15.91,90.25,90.132,0.25]
[1643362460571,1.53562495,90.249,90.132,0.25]
[1643362460870,0.25,90.203,90.132,0.25]
[1643362461070,46.84070053,90.203,90.132,0.25]
[1643362461476,1.53562495,90.242,90.133,2.07498125]
[1643362461671,1.53562495,90.242,90.145,111.9]
[1643362461872,1.53562495,90.258,90.15,15.91]
[1643362462073,1.53562495,90.264,90.16,6.0]
[1643362462271,111.5,90.265,90.161,25.1685]
[1643362462472,37.42869257,90.264,90.161,25.1685]
[1643362462673,111.5,90.263,90.161,27.24348125]
[1643362462873,6.0,90.254,90.162,2.07498125]
[1643362463072,29.3129,90.253,90.163,23.5156]
[1643362463273,29.3129,90.253,90.163,23.7656]
[1643362463473,0.25,90.252,90.164,2.07498125]
[1643362463673,36.41763071,90.246,90.163,23.7656]
[1643362463872,0.25,90.245,90.163,23.7656]
[1643362464075,6.0,90.236,90.163,23.7656]
[1643362464276,0.25,90.235,90.164,2.07498125]
[1643362464473,6.0,90.236,90.164,2.07498125]
[1643362464674,6.0,90.236,90.165,0.25]
[1643362464875,6.0,90.236,90.174,6.0]
[1643362465273,6.0,90.236,90.175,0.25]
[1643362465472,6.0,90.236,90.174,6.0]
[1643362465676,0.25,90.235,90.166,2.07498125]
[1643362465875,0.25,90.235,90.144,1.51272659]
[1643362466073,43.20998475,90.231,90.144,1.51272659]
[1643362466272,111.75,90.23,90.133,23.1172]
[1643362466473,111.75,90.23,90.134,1.51272659]
[1643362466474,111.5,90.22,90.134,1.51272659]
[1643362466676,111.5,90.22,90.133,23.1172]
[1643362466677,117.5,90.22,90.14,15.91]
[1643362466874,0.25,90.219,90.146,0.25]
[1643362467073,0.25,90.219,90.146,2.32498125]
[1643362467273,0.25,90.219,90.147,2.07498125]
[1643362467676,0.25,90.219,90.148,0.25]
[1643362467875,0.25,90.219,90.146,0.25]
[1643362468679,0.25,90.219,90.147,2.07498125]
[1643362468877,0.25,90.219,90.148,0.25]
[1643362469077,6.0,90.22,90.148,0.25]
[1643362469311,43.20998475,90.231,90.15,15.91]
[1643362469576,43.20998475,90.231,90.16,0.3182894]
[1643362469777,1.53562495,90.257,90.17,15.91]
[1643362469976,1.53562495,90.266,90.171,47.949]
[1643362470180,1.53562495,90.266,90.18,6.0]
[1643362470380,1.53562495,90.272,90.19,15.91]
[1643362470578,1.53562495,90.279,90.2,6.0]
[1643362470778,37.8420599,90.282,90.201,49.3032]
[1643362471178,0.25,90.281,90.201,51.37818125]
[1643362471378,0.25,90.281,90.202,2.07498125]
[1643362471778,0.25,90.281,90.203,0.25]
[1643362472177,0.25,90.281,90.204,2.07498125]
[1643362472378,0.25,90.281,90.205,0.25]
[1643362472779,0.25,90.281,90.206,2.07498125]
[1643362473181,0.25,90.281,90.207,0.25]
[1643362473579,0.25,90.281,90.208,2.07498125]
[1643362473783,0.25,90.281,90.209,0.25]
[1643362474180,0.25,90.281,90.21,2.07498125]
[1643362474382,2.57511555,90.312,90.211,0.25]
[1643362474583,16.6293,90.34,90.231,0.32077537]
[1643362474781,0.25,90.311,90.231,0.32077537]
[1643362474981,0.25,90.311,90.232,2.07498125]
[1643362475180,0.25,90.311,90.233,47.1617]
[1643362475380,0.25,90.311,90.233,47.4117]
[1643362475781,0.25,90.326,90.243,6.0]
[1643362476180,0.25,90.326,90.233,47.4117]
[1643362476181,6.0,90.317,90.233,47.4117]
[1643362476381,0.25,90.316,90.233,0.25]
[1643362476584,46.6579,90.316,90.233,0.25]
[1643362476983,38.26611242,90.305,90.233,0.25]
[1643362477382,38.26611242,90.305,90.211,2.07494411]
[1643362477383,6.0,90.295,90.212,0.25]
[1643362477784,0.25,90.294,90.213,2.07494411]
[1643362478183,0.25,90.294,90.214,0.25]
[1643362478384,6.25,90.294,90.214,0.25]
[1643362479787,6.25,90.294,90.215,18.92591165]
[1643362480184,6.25,90.294,90.216,19.17591165]
[1643362480385,6.25,90.294,90.217,0.25]
[1643362480585,6.25,90.294,90.217,16.84337005]
[1643362480785,6.25,90.294,90.21,15.91]
[1643362480992,6.25,90.294,90.2,15.91]
[1643362481688,45.95015139,90.291,90.2,15.91]
[1643362481889,0.25,90.29,90.2,15.91]
[1643362482093,6.0,90.281,90.201,19.17591165]
[1643362482292,0.25,90.28,90.201,19.17591165]
[1643362482488,0.25,90.28,90.202,18.92591165]
[1643362482688,0.25,90.28,90.211,6.0]
[1643362482888,0.25,90.28,90.212,0.25]
[1643362483093,0.25,90.28,90.203,43.12391165]
[1643362483389,0.25,90.28,90.204,0.25]
[1643362483588,6.25,90.28,90.204,0.25]
[1643362483988,6.0,90.28,90.204,0.25]
[1643362484188,6.0,90.28,90.204,2.3325416]
[1643362484918,6.0,90.281,90.203,41.04137005]
[1643362485113,6.0,90.281,90.203,16.84337005]
[1643362485313,0.25,90.28,90.185,16.84337005]
[1643362485514,43.86906957,90.277,90.185,16.84337005]
[1643362485715,0.25,90.276,90.185,16.84337005]
[1643362485915,6.0,90.267,90.185,16.84337005]
[1643362486416,111.75,90.266,90.185,16.84337005]
[1643362486715,6.25,90.266,90.185,16.84337005]
[1643362487017,6.0,90.266,90.186,2.0825416]
[1643362487216,0.25,90.265,90.186,2.3325416]
[1643362488116,0.25,90.265,90.186,2.0825416]
[1643362488317,111.75,90.275,90.186,2.0825416]
[1643362488918,111.75,90.275,90.181,23.1996]
[1643362489119,6.0,90.265,90.181,23.1996]
[1643362489318,111.75,90.264,90.181,23.1996]
[1643362489518,6.0,90.254,90.181,23.1996]
[1643362489919,6.0,90.252,90.181,23.1996]
[1643362490125,6.0,90.251,90.181,23.1996]
[1643362490322,0.25,90.25,90.181,23.1996]
[1643362490521,45.35602214,90.249,90.181,23.1996]
[1643362490920,0.25,90.248,90.182,0.25]
[1643362491323,0.25,90.248,90.162,29.51701058]
[1643362491523,23.3387,90.248,90.172,6.0]
[1643362491922,23.3387,90.248,90.173,2.0825416]
[1643362492122,23.3387,90.248,90.183,6.0]
[1643362492921,23.3387,90.248,90.172,6.0]
[1643362493121,23.3387,90.248,90.183,2.0825416]
[1643362493323,23.3387,90.248,90.184,0.25]
[1643362494022,23.3387,90.248,90.173,24.6325]
[1643362494223,23.3387,90.248,90.183,6.0]
[1643362494423,23.3387,90.248,90.173,2.0825416]
[1643362494623,23.3387,90.248,90.183,6.0]
[1643362494826,23.3387,90.248,90.163,2.0825416]
[1643362495025,23.3387,90.248,90.173,6.0]
[1643362496025,6.0,90.238,90.163,2.0825416]
[1643362496226,23.3387,90.248,90.164,0.25]
[1643362496428,0.25,90.237,90.164,0.25]
[1643362496626,23.3387,90.248,90.164,0.25]
[1643362496825,23.3387,90.248,90.165,2.0825416]
[1643362497228,23.3387,90.248,90.166,0.25]
[1643362497626,23.3387,90.248,90.166,24.1215]
[1643362498827,23.3387,90.248,90.167,2.0825416]
[1643362499126,23.3387,90.248,90.167,18.92591165]
[1643362499326,23.3387,90.248,90.168,0.25]
[1643362499530,23.3387,90.248,90.168,19.17591165]
[1643362499727,23.3387,90.248,90.169,18.92591165]
[1643362500128,23.3387,90.248,90.17,2.3325416]
[1643362500529,23.3387,90.248,90.171,2.0825416]
[1643362500937,23.3387,90.248,90.172,0.25]
[1643362501337,23.3387,90.248,90.173,2.0825416]
[1643362501933,23.3387,90.248,90.174,0.25]
[1643362502134,23.3387,90.248,90.172,0.25]
[1643362502536,6.0,90.238,90.172,0.25]
[1643362502938,0.25,90.237,90.172,0.25]
[1643362503135,0.25,90.237,90.167,0.25]
[1643362503336,0.25,90.237,90.173,2.0825416]
[1643362503736,0.25,90.237,90.174,0.25]
[1643362504136,0.25,90.247,90.174,2.3325416]
[1643362504540,0.25,90.247,90.184,6.0]
[1643362504739,40.7229,90.3,90.184,6.0]
[1643362504940,27.82831852,90.299,90.19,15.91]
[1643362505140,3.07001852,90.298,90.2,6.0]
[1643362505340,3.07001852,90.298,90.21,15.91]
[1643362505542,24.7583,90.299,90.21,15.91]
[1643362505543,49.35266366,90.297,90.21,15.91]
[1643362505745,49.35266366,90.297,90.211,0.25]
[1643362505940,4.56327712,90.328,90.211,19.17591165]
[1643362506140,6.0,90.318,90.221,6.0]
[1643362506341,6.0,90.318,90.23,15.91]
[1643362506541,6.0,90.318,90.24,6.0]
[1643362506943,49.5477653,90.317,90.241,0.25]
[1643362507145,6.0,90.307,90.241,6.25]
[1643362507342,0.25,90.306,90.241,6.25]
[1643362507542,0.25,90.306,90.242,6.0]
[1643362507946,6.0,90.307,90.243,0.25]
[1643362508146,6.0,90.307,90.243,2.3325416]
[1643362509348,0.25,90.306,90.243,2.3325416]
[1643362509544,0.25,90.306,90.253,6.0]
[1643362509946,0.25,90.316,90.254,0.25]
[1643362510146,0.25,90.316,90.254,6.25]
[1643362511365,0.25,90.316,90.254,6.0]
[1643362511765,0.25,90.316,90.23,15.91]
[1643362512263,0.25,90.316,90.241,6.0]
[1643362512664,0.25,90.316,90.242,6.0]
[1643362513071,0.25,90.316,90.243,24.8364]
[1643362513267,49.5477653,90.317,90.243,24.8364]
[1643362513268,49.5477653,90.317,90.243,26.9189416]
[1643362514068,49.5477653,90.317,90.253,6.0]
[1643362514368,49.5477653,90.317,90.254,0.25]
[1643362514567,0.25,90.316,90.254,0.25]
[1643362515166,0.25,90.316,90.253,6.0]